fUSD/lending_fUSD_20260423
["ID","MTS","AMOUNT","RATE_DAILY","PERIOD"]
[421053307,1776954645038,-1000.0,0.00016986,2]
[421053308,1776954645048,-1000.0,0.00016986,2]
[421053309,1776954645058,-387.66723782,0.00016986,2]
[421053310,1776954645067,-1000.0,0.00016986,2]
[421053311,1776954645077,-612.96071834,0.00016986,2]
[421053312,1776954645087,-1000.0,0.00016986,2]
[421053313,1776954645097,-1000.0,0.00016986,2]
[421053314,1776954645107,-1000.0,0.00016986,2]
[421053315,1776954645118,-646.770127,0.00017,2]
[421053316,1776954645128,-646.770127,0.00017,2]
[421053317,1776954645138,-646.770127,0.00017,2]
[421053318,1776954645148,-646.770127,0.00017,2]
[421053319,1776954645157,-646.770127,0.00017,2]
[421053320,1776954645167,-646.770127,0.00017,2]
[421053321,1776954645176,-646.770127,0.00017,2]
[421053322,1776954645185,-646.77012791,0.00017,2]
[421053323,1776954645195,-350.0,0.00017,2]
[421053324,1776954645205,-151.0,0.00017047,2]
[421053325,1776954645214,-550.0,0.0001726,2]
[421053326,1776954645224,-500.0,0.00017373,2]
[421053327,1776954645233,-1427.78827768,0.00017534,2]
[421053328,1776954645243,-1500.0,0.00017534,2]
[421053329,1776954645252,-1500.0,0.00017534,2]
[421053330,1776954645262,-1500.0,0.00017534,2]
[421053331,1776954645271,-1500.0,0.00017534,2]
[421053332,1776954645280,-1530.54615275,0.00017534,2]
[421053333,1776954645290,-1500.0,0.00017534,2]
[421053334,1776954645300,-150.0,0.00017534,2]
[421053335,1776954645309,-1500.0,0.00017534,2]
[421053336,1776954645318,-1500.0,0.00017534,2]
[421053337,1776954645328,-1500.0,0.00017534,2]
[421053338,1776954645338,-1500.0,0.00017534,2]
[421053339,1776954645347,-1500.0,0.00017534,2]
[421053340,1776954645359,-1500.0,0.00017534,2]
[421053341,1776954645369,-1500.0,0.00017534,2]
[421053342,1776954645380,-1500.0,0.00017534,2]
[421053343,1776954645390,-1500.0,0.00017534,2]
[421053344,1776954645400,-1500.0,0.00017534,2]
[421053345,1776954645410,-1500.0,0.00017534,2]
[421053346,1776954645420,-1500.0,0.00017534,2]
[421053347,1776954645431,-1500.0,0.00017534,2]
[421053348,1776954645441,-5888.0,0.00017575,2]
[421053349,1776954645451,-5888.0,0.00017588,2]
[421053350,1776954645461,-1367.28,0.00017646,2]
[421053351,1776954645471,-500.0,0.00017646,2]
[421053352,1776954645480,-1837.92,0.00017646,2]
[421053353,1776954645490,-1229.76,0.00017646,2]
[421053355,1776954645500,-1885.9,0.00017646,2]
[421053356,1776954645510,-500.0,0.00017646,2]
[421053357,1776954645520,-500.0,0.00017646,2]
[421053358,1776954645530,-3431.13,0.00017646,2]
[421053359,1776954645540,-2192.19,0.00017646,2]
[421053360,1776954645550,-2500.0,0.00017646,2]
[421053361,1776954645560,-5888.0,0.00017646,2]
[421053362,1776954645570,-988.03,0.00017698,2]
[421053363,1776954645579,-500.0,0.00017698,2]
[421053364,1776954645589,-889.62,0.00017698,2]
[421053365,1776954645599,-5888.0,0.00017699,2]
[421053366,1776954645610,-5888.0,0.00017704,2]
[421053367,1776954645620,-1110.87,0.00017808,2]
[421053368,1776954645629,-1851.45,0.00017808,2]
[421053369,1776954645639,-650.0,0.00017808,2]
[421053370,1776954645649,-5888.0,0.00017836,2]
[421053371,1776954645659,-5888.0,0.00017854,2]
[421053372,1776954645669,-5888.0,0.00017877,2]
[421053373,1776954645679,-5888.0,0.00017964,2]
[421053374,1776954645689,-5888.0,0.00017995,2]
[421053375,1776954645699,-500.0,0.00017999,2]
[421053376,1776954645710,-500.0,0.00017999,2]
[421053377,1776954645720,-1159.32,0.00017999,2]
[421053378,1776954645730,-2252.65,0.00017999,2]
[421053379,1776954645739,-500.0,0.00017999,2]
[421053380,1776954645749,-1602.18,0.00017999,2]
[421053381,1776954645759,-1760.5,0.00017999,2]
[421053382,1776954645769,-500.0,0.00017999,2]
[421053383,1776954645779,-500.0,0.00017999,2]
[421053384,1776954645788,-807.18,0.00017999,2]
[421053385,1776954645797,-2800.28,0.00017999,2]
[421053386,1776954645807,-2023.39,0.00017999,2]
[421053387,1776954645816,-644.59,0.00017999,2]
[421053388,1776954645826,-500.0,0.00017999,2]
[421053389,1776954645835,-997.95,0.00017999,2]
[421053390,1776954645845,-1116.98,0.00017999,2]
[421053391,1776954645855,-1536.23,0.00017999,2]
[421053392,1776954645864,-1870.98280986,0.00018,2]
[421053393,1776954645874,-1911.8437608,0.00018,2]
[421053394,1776954645883,-200.0,0.00018,2]
[421053395,1776954645893,-505.0,0.00018034,5]
[421053396,1776954645902,-2000.0,0.00018082,2]
[421053397,1776954645912,-212.52244958,0.00018082,2]
[421053398,1776954645922,-2000.0,0.00018082,2]
[421053399,1776954645932,-2000.0,0.00018082,2]
[421053400,1776954645942,-2000.0,0.00018082,2]
[421053401,1776954645951,-150.0,0.00018082,2]
[421053402,1776954645960,-1238.08068233,0.00018082,2]
[421053403,1776954645971,-2000.0,0.00018082,2]
[421053404,1776954645981,-2000.0,0.00018082,2]
[421053405,1776954645991,-2000.0,0.00018082,2]
[421053406,1776954646001,-2068.86232424,0.00018082,2]
[421053407,1776954646016,-748.60272816,0.00018082,2]
[421053408,1776954646027,-2000.0,0.00018082,2]
[421053409,1776954646038,-2000.0,0.00018082,2]
[421053410,1776954646047,-2000.0,0.00018082,2]
[421053411,1776954646057,-2000.0,0.00018082,2]
[421053412,1776954646067,-2000.0,0.00018082,2]
[421053413,1776954646077,-2000.0,0.00018082,2]
[421053414,1776954646086,-566.63250105,0.00018082,2]
[421053415,1776954646096,-5888.0,0.00018142,2]
[421053416,1776954646105,-5888.0,0.00018169,2]
[421053417,1776954646115,-1870.98280986,0.000182,2]
[421053418,1776954646125,-1911.8437608,0.000182,2]
[421053419,1776954646134,-233.99386248,0.000183,2]
[421053420,1776954646144,-168.05473277,0.00018321,37]
[421053421,1776954646153,-4237.99942615,0.00018324,2]
[421053422,1776954646162,-5888.0,0.00018334,2]
[421053423,1776954646172,-5888.0,0.00018346,2]
[421053424,1776954646182,-750.0,0.00018356,2]
[421053425,1776954646191,-1870.98280986,0.000184,2]
[421053426,1776954646201,-1911.8437608,0.000184,2]
[421053427,1776954646211,-1870.98280986,0.000185,2]
[421053428,1776954646220,-1911.8437608,0.000185,2]
[421053429,1776954646230,-5888.0,0.00018542,2]
[421053430,1776954646239,-5888.0,0.00018574,2]
[421053431,1776954646248,-5888.0,0.00018608,2]
[421053432,1776954646258,-1692.95145504,0.0001863,2]
[421053433,1776954646267,-2500.0,0.0001863,2]
[421053434,1776954646277,-2500.0,0.0001863,2]
[421053435,1776954646286,-2500.0,0.0001863,2]
[421053436,1776954646295,-150.0,0.0001863,2]
[421053437,1776954646306,-1992.31242159,0.0001863,2]
[421053438,1776954646316,-2500.0,0.0001863,2]
[421053439,1776954646326,-589.15330681,0.0001863,2]
[421053440,1776954646336,-2500.0,0.0001863,2]
[421053441,1776954646345,-2500.0,0.0001863,2]
[421053442,1776954646355,-2500.0,0.0001863,2]
[421053443,1776954646365,-1202.37534821,0.0001863,2]
[421053444,1776954646375,-454.10107221,0.0001863,2]
[421053445,1776954646386,-2500.0,0.0001863,2]
[421053446,1776954646396,-5888.0,0.00018656,2]
[421053447,1776954646406,-5888.0,0.00018658,2]
[421053448,1776954646415,-1870.98280986,0.000187,2]
[421053449,1776954646425,-1911.8437608,0.000187,2]
[421053450,1776954646435,-7842.6,0.00018872,2]
[421053451,1776954646444,-1870.98280986,0.000189,2]
[421053458,1776954646836,-850.0,0.00018904,2]
[421053459,1776954646846,-400.0,0.00019,2]
[421053460,1776954646857,-5888.0,0.00019007,2]
[421053461,1776954646866,-400.0,0.00019048,2]
[421053462,1776954646876,-400.0,0.00019048,2]
[421053463,1776954646886,-400.0,0.00019048,2]
[421053464,1776954646895,-400.0,0.00019048,2]
[421053465,1776954646907,-400.0,0.00019048,2]
[421053466,1776954646916,-400.0,0.00019048,2]
[421053467,1776954646926,-400.0,0.00019048,2]
[421053468,1776954646936,-400.0,0.00019048,2]
[421053469,1776954646945,-400.0,0.00019048,2]
[421053470,1776954646955,-369.0,0.00019048,2]
[421053471,1776954646965,-5888.0,0.00019059,2]
[421053472,1776954646975,-5888.0,0.00019092,2]
[421053473,1776954646985,-1870.98280986,0.000191,2]
[421053474,1776954646994,-1367.28,0.00019176,2]
[421053475,1776954647004,-500.0,0.00019176,2]
[421053476,1776954647013,-1837.92,0.00019176,2]
[421053477,1776954647023,-1229.76,0.00019176,2]
[421053478,1776954647032,-1885.9,0.00019176,2]
[421053479,1776954647042,-500.0,0.00019176,2]
[421053480,1776954647051,-500.0,0.00019176,2]
[421053481,1776954647061,-3431.13,0.00019176,2]
[421053482,1776954647070,-2192.19,0.00019176,2]
[421053483,1776954647080,-2500.0,0.00019176,2]
[421053484,1776954647089,-988.03,0.00019177,2]
[421053485,1776954647099,-500.0,0.00019177,2]
[421053486,1776954647108,-889.62,0.00019177,2]
[421053487,1776954647118,-500.0,0.00019178,2]
[421053488,1776954647128,-500.0,0.00019178,2]
[421053489,1776954647137,-500.0,0.00019178,2]
[421053490,1776954647147,-500.0,0.00019178,2]
[421053491,1776954647156,-500.0,0.00019178,2]
[421053492,1776954647165,-500.0,0.00019178,2]
[421053493,1776954647175,-500.0,0.00019178,2]
[421053494,1776954647184,-500.0,0.00019178,2]
[421053495,1776954647193,-612.96616614,0.00019178,2]
[421053496,1776954647203,-3000.0,0.00019178,2]
[421053497,1776954647212,-3000.0,0.00019178,7]
[421053498,1776954647222,-2500.0,0.00019178,2]
[421053499,1776954647232,-2500.0,0.00019178,2]
[421053500,1776954647241,-2500.0,0.00019178,2]
[421053501,1776954647250,-174.51450057,0.00019178,2]
[421053502,1776954647260,-3000.0,0.00019178,2]
[421053503,1776954647269,-150.0,0.00019178,2]
[421053504,1776954647279,-150.0,0.00019178,2]
[421053505,1776954647288,-2774.91061354,0.00019178,2]
[421053506,1776954647299,-2290.92379461,0.00019178,2]
[421053507,1776954647308,-3000.0,0.00019178,2]
[421053508,1776954647318,-2283.62121173,0.00019178,2]
[421053509,1776954647328,-150.47995255,0.000192,2]
[421053510,1776954647337,-5888.0,0.00019265,2]
[421053511,1776954647346,-5888.0,0.00019271,2]
[421053512,1776954647356,-500.0,0.00019273,2]
[421053513,1776954647366,-500.0,0.00019273,2]
[421053514,1776954647377,-1159.32,0.00019273,2]
[421053515,1776954647387,-2252.65,0.00019273,2]
[421053516,1776954647396,-500.0,0.00019273,2]
[421053517,1776954647405,-1602.18,0.00019273,2]
[421053518,1776954647415,-1760.5,0.00019273,2]
[421053519,1776954647424,-500.0,0.00019273,2]
[421053520,1776954647434,-500.0,0.00019273,2]
[421053521,1776954647444,-807.18,0.00019273,2]
[421053522,1776954647453,-2800.28,0.00019273,2]
[421053523,1776954647463,-500.0,0.00019273,2]
[421053524,1776954647473,-2023.39,0.00019273,2]
[421053525,1776954647483,-644.59,0.00019273,2]
[421053526,1776954647492,-500.0,0.00019273,2]
[421053527,1776954647502,-997.95,0.00019273,2]
[421053528,1776954647511,-1116.98,0.00019273,2]
[421053529,1776954647521,-1536.23,0.00019273,2]
[421053530,1776954647531,-5888.0,0.00019274,2]
[421053531,1776954647541,-1870.98280986,0.000193,2]
[421053532,1776954647551,-950.0,0.00019452,2]
[421053533,1776954647560,-150.0,0.00019475,2]
[421053534,1776954647570,-150.0,0.00019475,2]
[421053535,1776954647579,-150.0,0.00019475,2]
[421053536,1776954647589,-171.0,0.00019475,2]
[421053537,1776954647599,-1870.98280986,0.000195,2]
[421053538,1776954647608,-683.60342917,0.00019538,2]
[421053539,1776954647617,-505.0,0.00019545,7]
[421053540,1776954647627,-1266.0,0.00019567,2]
[421053541,1776954647637,-1219.0,0.00019567,2]
[421053542,1776954647646,-927.0,0.00019567,2]
[421053543,1776954647656,-3242.614,0.00019567,2]
[421053544,1776954647666,-150.0,0.0001965,2]
[421053545,1776954647675,-150.0,0.0001965,2]
[421053546,1776954647685,-150.0,0.0001965,2]
[421053547,1776954647695,-150.0,0.0001965,2]
[421053548,1776954647704,-150.0,0.0001965,2]
[421053549,1776954647714,-274.0,0.0001965,2]
[421053550,1776954647723,-489.25,0.00019679,2]
[421053551,1776954647732,-1870.98280986,0.000197,2]
[421053552,1776954647742,-1307.98487992,0.00019726,2]
[421053553,1776954647752,-3500.0,0.00019726,2]
[421053554,1776954647761,-250.0,0.00019726,2]
[421053555,1776954647771,-250.0,0.00019726,2]
[421053556,1776954647781,-489.25,0.0001981,2]
[421053557,1776954647790,-550.0,0.00019913,2]
[421053558,1776954647800,-550.0,0.00019913,2]
[421053559,1776954647809,-550.0,0.00019913,2]
[421053560,1776954647819,-550.0,0.00019913,2]
[421053561,1776954647828,-550.0,0.00019913,2]
[421053562,1776954647838,-550.0,0.00019913,2]
[421053563,1776954647847,-550.0,0.00019913,2]
[421053564,1776954647856,-550.0,0.00019913,2]
[421053565,1776954647865,-628.0,0.00019913,2]
[421053566,1776954647875,-489.25,0.0001994,2]
[421053567,1776954647884,-3230.0,0.0002,2]
[421053568,1776954647894,-747.0,0.0002,2]
[421053569,1776954647903,-533.0,0.0002,2]
[421053570,1776954647912,-3815.0,0.0002,2]
[421053571,1776954647922,-1077.0,0.0002,2]
[421053572,1776954647931,-924.0,0.0002,2]
[421053573,1776954647940,-4938.0,0.0002,2]
[421053574,1776954647950,-200.0,0.0002,10]
[421053575,1776954647959,-1103.0,0.0002,2]
[421053576,1776954647969,-1050.0,0.0002,2]
[421053577,1776954647978,-395.0,0.0002,2]
[421053578,1776954647988,-1461.0,0.0002,2]
[421053579,1776954647998,-200.0,0.0002,2]
[421053580,1776954648007,-150.0,0.0002,20]
[421053581,1776954648016,-2945.0,0.0002,2]
[421053582,1776954648026,-9725.0,0.0002,2]
[421053583,1776954648035,-489.25,0.0002007,2]
[421053584,1776954648045,-2000.0,0.000201,2]
[421053585,1776954648054,-300.0,0.000201,10]
[421053586,1776954648064,-612.96616614,0.00020117,2]
[421053587,1776954648074,-489.25,0.00020201,2]
[421053588,1776954648084,-3137.05011054,0.00020274,2]
[421053589,1776954648094,-350.0,0.00020274,2]
[421053590,1776954648104,-350.0,0.00020274,2]
[421053591,1776954648114,-489.25,0.00020331,2]
[421053592,1776954648124,-298.18,0.000204,6]
[421053593,1776954648133,-221.69,0.000204,6]
[421053594,1776954648148,-489.25,0.00020461,2]
[421053595,1776954648158,-740.58,0.00020547,2]
[421053596,1776954648168,-1056.63250676,0.00020548,2]
[421053597,1776954648178,-489.30524615,0.00020592,2]
[421053598,1776954648188,-578.20924308,0.0002066,2]
[421053599,1776954648198,-151.0,0.0002066,2]
[421053600,1776954648208,-174.61919141,0.0002066,2]
[421053601,1776954648217,-1000.0,0.0002066,2]
[421053602,1776954648228,-1000.01235482,0.0002066,2]
[421053603,1776954648238,-454.0,0.00020707,5]
[421053604,1776954648249,-439.0,0.00020707,5]
[421053605,1776954648259,-151.0,0.00020715,2]
[421053606,1776954648269,-296.39175039,0.0002077,2]
[421053607,1776954648279,-450.0,0.00020822,2]
[421053608,1776954648290,-450.0,0.00020822,2]
[421053609,1776954648300,-13569.3089382,0.00021,3]
[421053610,1776954648465,-1136.62921406,8.399e-05,2]
[421053611,1776954648489,-387.965,8.399e-05,2]
[421053656,1776955831869,-185.82,8.2e-05,2]
[421053657,1776955831878,-280.0,8.219e-05,2]
[421053658,1776955831888,-500.0,8.361e-05,2]
[421053659,1776955831897,-500.0,8.361e-05,2]
[421053660,1776955831906,-500.0,8.361e-05,2]
[421053661,1776955831916,-300.0,8.375e-05,2]
[421053662,1776955831926,-300.0,8.375e-05,2]
[421053663,1776955831935,-300.0,8.375e-05,2]
[421053664,1776955831949,-1200.0,8.47e-05,2]
[421053665,1776955831959,-3444.67512068,8.471e-05,2]
[421053666,1776955831969,-860.2670181,8.625e-05,2]
[421053667,1776955831979,-184.83,8.653e-05,2]
[421053668,1776955831988,-246.45,8.88e-05,2]
[421053669,1776955831998,-11399.9053,9e-05,2]
[421053670,1776955832008,-500.0,9.02e-05,2]
[421053671,1776955832018,-5000.0,9.02e-05,2]
[421053672,1776955832028,-500.0,9.02e-05,2]
[421053673,1776955832037,-300.0,9.02e-05,2]
[421053674,1776955832047,-300.0,9.02e-05,2]
[421053675,1776955832057,-230.2547,9.1e-05,2]
[421053676,1776955832066,-177.32,9.106e-05,2]
[421053677,1776955832076,-492.91,9.106e-05,2]
[421053678,1776955832085,-370.74,9.106e-05,2]
[421053679,1776955832097,-447.07,9.106e-05,2]
[421053680,1776955832106,-150.0,9.15e-05,2]
[421053681,1776955832115,-9624.55172152,9.152e-05,2]
[421053682,1776955832127,-375.43827848,9.152e-05,2]
[421053683,1776955832137,-169.03326072,9.152e-05,2]
[421053684,1776955832149,-564.7593,9.152e-05,2]
[421053685,1776955832159,-1857.20743928,9.152e-05,2]
[421053686,1776955832171,-105677.87,9.152e-05,2]
[421053687,1776955832180,-999.99,9.152e-05,2]
[421053688,1776955832190,-150.99,9.152e-05,2]
[421053689,1776955832200,-299.99,9.152e-05,2]
[421053690,1776955832210,-6511.52,9.152e-05,2]
[421053691,1776955832220,-39485.88,9.152e-05,2]
[421053692,1776955832230,-9999.99,9.152e-05,2]
[421053693,1776955832239,-542.86,9.152e-05,2]
[421053694,1776955832250,-7186.21,9.152e-05,2]
[421053695,1776955832259,-7949.01,9.152e-05,2]
[421053696,1776955832269,-1287.0,9.317e-05,2]
[421053697,1776955832279,-860.2670181,9.645e-05,2]
[421053698,1776955832289,-255.0,0.00010065,2]
[421053699,1776955832299,-1001.76893914,0.00010217,2]
[421053700,1776955832309,-860.2670181,0.00010664,2]
[421053701,1776955832318,-1112.1001998,0.00010959,2]
[421053702,1776955832328,-433.0,0.00011072,2]
[421053703,1776955832339,-220.36368211,0.00011432,2]
[421053704,1776955832348,-478.0,0.00011436,2]
[421053705,1776955832358,-150.0,0.00011436,2]
[421053706,1776955832369,-236.36028707,0.00011459,4]
[421053707,1776955832378,-191.0,0.00011459,2]
[421053708,1776955832388,-860.2670181,0.00011684,2]
[421053709,1776955832399,-414.0,0.00012179,2]
[421053710,1776955832408,-162.0,0.00012893,2]
[421053711,1776955832419,-250.0,0.00013,2]
[421053712,1776955832430,-2500.0,0.000134,2]
[421053713,1776955832440,-424.06,0.00013432,2]
[421053714,1776955832450,-221.65,0.00013432,2]
[421053715,1776955832460,-206.88,0.00013432,2]
[421053716,1776955832470,-775.2585,0.00013479,2]
[421053717,1776955832479,-250.22,0.00013499,2]
[421053718,1776955832489,-505.0,0.000135,2]
[421053719,1776955832499,-2648.74964137,0.00013598,2]
[421053720,1776955832508,-160.14902791,0.000136,2]
[421053721,1776955832518,-500.0,0.00013673,2]
[421053722,1776955832528,-724.58,0.00013698,2]
[421053723,1776955832539,-724.58,0.00013698,2]
[421053724,1776955832550,-724.58,0.00013698,2]
[421053725,1776955832560,-724.58,0.00013698,2]
[421053726,1776955832569,-1407.91,0.00013698,2]
[421053727,1776955832578,-1407.91,0.00013698,2]
[421053728,1776955832588,-1407.91,0.00013698,2]
[421053729,1776955832597,-1407.91,0.00013698,2]
[421053730,1776955832607,-1123.51,0.00013698,2]
[421053731,1776955832617,-1123.51,0.00013698,2]
[421053732,1776955832628,-1123.51,0.00013698,2]
[421053733,1776955832637,-1123.51,0.00013698,2]
[421053734,1776955832647,-500.0,0.00013698,2]
[421053735,1776955832657,-500.0,0.00013698,2]
[421053736,1776955832666,-500.0,0.00013698,2]
[421053737,1776955832676,-500.0,0.00013698,2]
[421053738,1776955832686,-1100.32,0.00013698,2]
[421053739,1776955832696,-1100.32,0.00013698,2]
[421053740,1776955832705,-1100.32,0.00013698,2]
[421053741,1776955832715,-1100.32,0.00013698,2]
[421053742,1776955832724,-1001.36,0.00013698,2]
[421053743,1776955832734,-1001.36,0.00013698,2]
[421053744,1776955832743,-1001.36,0.00013698,2]
[421053745,1776955832753,-1001.36,0.00013698,2]
[421053746,1776955832763,-504.49,0.00013698,2]
[421053747,1776955832773,-504.49,0.00013698,2]
[421053748,1776955832783,-504.49,0.00013698,2]
[421053749,1776955832792,-504.49,0.00013698,2]
[421053750,1776955832802,-1750.18,0.00013698,2]
[421053751,1776955832811,-1750.18,0.00013698,2]
[421053752,1776955832821,-1750.18,0.00013698,2]
[421053753,1776955832831,-1750.18,0.00013698,2]
[421053754,1776955832841,-1264.62,0.00013698,2]
[421053755,1776955832851,-1264.62,0.00013698,2]
[421053756,1776955832860,-1264.62,0.00013698,2]
[421053757,1776955832870,-1264.62,0.00013698,2]
[421053758,1776955832879,-854.55,0.00013698,2]
[421053759,1776955832889,-500.0,0.00013698,2]
[421053760,1776955832899,-500.0,0.00013698,2]
[421053761,1776955832908,-500.0,0.00013698,2]
[421053762,1776955832918,-500.0,0.00013698,2]
[421053763,1776955832927,-500.0,0.00013698,2]
[421053764,1776955832937,-1411.27,0.00013698,2]
[421053765,1776955832947,-623.72,0.00013698,2]
[421053766,1776955832957,-623.72,0.00013698,2]
[421053767,1776955832966,-623.72,0.00013698,2]
[421053768,1776955832976,-623.72,0.00013698,2]
[421053769,1776955832986,-698.11,0.00013698,2]
[421053770,1776955832996,-698.11,0.00013698,2]
[421053771,1776955833006,-698.11,0.00013698,2]
[421053772,1776955833016,-698.11,0.00013698,2]
[421053773,1776955833025,-960.14,0.00013698,2]
[421053774,1776955833035,-960.14,0.00013698,2]
[421053775,1776955833044,-960.14,0.00013698,2]
[421053776,1776955833058,-960.14,0.00013698,2]
[421053777,1776955833068,-768.6,0.00013698,2]
[421053778,1776955833078,-1178.69,0.00013698,2]
[421053779,1776955833089,-500.0,0.00013698,2]
[421053780,1776955833099,-500.0,0.00013698,2]
[421053781,1776955833109,-500.0,0.00013698,2]
[421053782,1776955833119,-1370.12,0.00013698,2]
[421053783,1776955833128,-593.08,0.00013698,2]
[421053784,1776955833138,-2144.45,0.00013698,2]
[421053785,1776955833147,-500.0,0.00013698,2]
[421053786,1776955833157,-500.0,0.00013698,2]
[421053787,1776955833166,-623.27426277,0.000137,2]
[421053788,1776955833176,-500.0,0.000137,2]
[421053789,1776955833186,-500.0,0.000137,2]
[421053790,1776955833195,-500.0,0.000137,2]
[421053791,1776955833205,-500.0,0.000137,2]
[421053792,1776955833214,-500.0,0.000137,2]
[421053793,1776955833224,-500.0,0.000137,2]
[421053794,1776955833233,-266.43426913,0.000137,2]
[421053795,1776955833243,-160.1443379,0.000137,2]
[421053796,1776955833252,-250.22,0.00013773,2]
[421053797,1776955833261,-250.22,0.00014047,2]
[421053798,1776955833271,-500.0,0.00014248,2]
[421053799,1776955833281,-478.5224005,0.00014559,2]
[421053800,1776955833290,-623.0,0.00014659,2]
[421053801,1776955833299,-1349.0,0.00014659,2]
[421053802,1776955833309,-3530.0,0.00014659,2]
[421053803,1776955833319,-1266.0,0.00014659,2]
[421053804,1776955833328,-927.0,0.00014659,2]
[421053805,1776955833338,-1219.0,0.00014659,2]
[421053806,1776955833347,-299.0,0.00014659,2]
[421053807,1776955833357,-3781.0,0.00014659,2]
[421053808,1776955833366,-476.542,0.00014659,2]
[421053809,1776955833375,-309.475081,0.000148,2]
[421053810,1776955833385,-300.0,0.00015,2]
[421053811,1776955833396,-160.0,0.00015,2]
[421053812,1776955833405,-280.0,0.00015062,2]
[421053813,1776955833414,-505.0,0.00015163,3]
[421053814,1776955833424,-478.52240041,0.00015366,2]
[421053815,1776955833434,-150.0,0.00015781,2]
[421053816,1776955833444,-150.0,0.00015781,2]
[421053817,1776955833454,-150.0,0.00015781,2]
[421053818,1776955833464,-229.60826307,0.00015808,2]
[421053819,1776955833473,-230.95,0.00015863,2]
[421053820,1776955833482,-500.0,0.0001589,2]
[421053821,1776955833492,-500.0,0.0001589,2]
[421053822,1776955833502,-500.0,0.0001589,2]
[421053823,1776955833513,-500.0,0.0001589,2]
[421053824,1776955833523,-418.22058709,0.00016,2]
[421053825,1776955833533,-418.22058709,0.000161,2]
[421053826,1776955833542,-3265.97816338,0.00016116,2]
[421053827,1776955833556,-12990.60183662,0.00016116,2]
[421053828,1776955833565,-9999.99,0.00016116,2]
[421053829,1776955833575,-478.52240041,0.00016172,2]
[421053830,1776955833584,-418.22058709,0.000162,2]
[421053831,1776955833594,-2242.39322327,0.00016346,2]
[421053832,1776955833604,-724.58,0.00016399,2]
[421053833,1776955833614,-1407.91,0.00016399,2]
[421053834,1776955833623,-1123.51,0.00016399,2]
[421053835,1776955833633,-256.97165582,0.00016399,2]
[421053836,1776955833643,-1100.32,0.00016399,2]
[421053837,1776955833652,-1001.36,0.00016399,2]
[421053838,1776955833662,-500.0,0.00016399,2]
[421053839,1776955833671,-504.49,0.00016399,2]
[421053840,1776955833681,-1750.18,0.00016399,2]
[421053841,1776955833690,-1264.62,0.00016399,2]
[421053842,1776955833700,-500.0,0.00016399,2]
[421053843,1776955833709,-623.72,0.00016399,2]
[421053844,1776955833719,-698.11,0.00016399,2]
[421053845,1776955833728,-960.14,0.00016399,2]
[421053846,1776955833738,-724.58,0.00016437,2]
[421053847,1776955833747,-1407.91,0.00016437,2]
[421053848,1776955833757,-1123.51,0.00016437,2]
[421053849,1776955833766,-1100.32,0.00016437,2]
[421053850,1776955833776,-1001.36,0.00016437,2]
[421053851,1776955833785,-500.0,0.00016437,2]
[421053852,1776955833795,-504.49,0.00016437,2]
[421053853,1776955833804,-1750.18,0.00016437,2]
[421053854,1776955833814,-1264.62,0.00016437,2]
[421053855,1776955833823,-500.0,0.00016437,2]
[421053856,1776955833833,-623.72,0.00016437,2]
[421053857,1776955833843,-698.11,0.00016437,2]